fUST/lending_fUST_20240222
["ID","MTS","AMOUNT","RATE_DAILY","PERIOD"]
[314840648,1708583441875,-616.75039074,0.00019178,2]
[314840649,1708583441884,-5079.94,0.00019178,2]
[314840650,1708583441893,-694.38,0.00019178,2]
[314840651,1708583441902,-500.0,0.00019178,2]
[314840652,1708583441911,-500.26660645,0.00019178,2]
[314840653,1708583441921,-167.19926347,0.00019178,2]
[314840654,1708583441930,-504.23606148,0.00019178,2]
[314840655,1708583441939,-500.0,0.00019178,2]
[314840656,1708583441948,-500.0,0.00019178,2]
[314840657,1708583441957,-293.00370746,0.00019178,2]
[314840658,1708583441966,-1686.18,0.00019178,2]
[314840659,1708583441976,-500.0,0.00019178,2]
[314840660,1708583441985,-500.0,0.00019178,2]
[314840661,1708583441994,-500.0,0.00019178,2]
[314840662,1708583442003,-500.75871392,0.00019178,2]
[314840663,1708583442012,-166.3129924,0.00019178,2]
[314840664,1708583442022,-500.0,0.00019178,2]
[314840665,1708583442031,-500.0,0.00019178,2]
[314840666,1708583442040,-352.51950847,0.00019178,2]
[314840667,1708583442049,-500.0,0.00019178,2]
[314840668,1708583442059,-500.97740635,0.00019178,2]
[314840669,1708583442068,-500.0,0.00019178,2]
[314840670,1708583442077,-500.0,0.00019178,2]
[314840671,1708583442085,-500.0,0.00019178,2]
[314840672,1708583442094,-500.0,0.00019178,2]
[314840673,1708583442103,-500.0,0.00019178,2]
[314840674,1708583442112,-500.0,0.00019178,2]
[314840675,1708583442122,-500.0,0.00019178,2]
[314840676,1708583442131,-500.0,0.00019178,2]
[314840677,1708583442140,-500.0,0.00019178,2]
[314840678,1708583442149,-500.0,0.00019178,2]
[314840679,1708583442160,-500.0,0.00019178,2]
[314840680,1708583442169,-500.59275433,0.00019178,2]
[314840681,1708583442180,-500.0,0.00019178,2]
[314840682,1708583442190,-500.0,0.00019178,2]
[314840683,1708583442200,-500.0,0.00019178,2]
[314840684,1708583442211,-2260.78,0.00019178,2]
[314840685,1708583442222,-500.49916043,0.00019178,2]
[314840686,1708583442232,-573.25693407,0.00019178,2]
[314840687,1708583442240,-500.0,0.00019178,2]
[314840688,1708583442250,-260.64937657,0.00019178,2]
[314840689,1708583442258,-159.34480132,0.00019178,2]
[314840690,1708583442269,-500.0,0.00019178,2]
[314840691,1708583442278,-500.4536856,0.00019178,2]
[314840692,1708583442287,-500.0,0.00019178,2]
[314840693,1708583442298,-617.93,0.00019178,2]
[314840694,1708583442308,-500.59160365,0.00019178,2]
[314840695,1708583442317,-607.48231245,0.00019178,2]
[314840696,1708583442327,-169.7256297,0.00019178,2]
[314840697,1708583442336,-300.0,0.00019355,2]
[314840698,1708583442345,-217.17038783,0.00019399,2]
[314840699,1708583442355,-500.0,0.0001945,2]
[314840700,1708583442365,-500.0,0.0001945,2]
[314840701,1708583442374,-500.0,0.0001945,2]
[314840702,1708583442383,-500.0,0.0001945,2]
[314840703,1708583442393,-500.0,0.0001945,2]
[314840704,1708583442403,-500.0,0.0001945,2]
[314840705,1708583442413,-500.0,0.0001945,2]
[314840706,1708583442421,-500.0,0.0001945,2]
[314840707,1708583442431,-201.96104286,0.0001945,2]
[314840708,1708583442440,-500.0,0.0001945,2]
[314840709,1708583442450,-500.0,0.0001945,2]
[314840710,1708583442459,-500.0,0.0001945,2]
[314840711,1708583442469,-500.0,0.0001945,2]
[314840712,1708583442478,-639.06718831,0.0001945,2]
[314840713,1708583442487,-500.0,0.0001945,2]
[314840714,1708583442496,-500.0,0.0001945,2]
[314840715,1708583442506,-500.0,0.0001945,2]
[314840716,1708583442515,-500.0,0.0001945,2]
[314840717,1708583442524,-250.0,0.0001945,2]
[314840718,1708583442533,-500.0,0.0001945,2]
[314840719,1708583442543,-500.0,0.0001945,2]
[314840720,1708583442552,-500.0,0.0001945,2]
[314840721,1708583442561,-489.14084641,0.0001945,2]
[314840722,1708583442571,-424.51460654,0.0001945,2]
[314840723,1708583442580,-463.77069337,0.0001945,2]
[314840724,1708583442589,-500.0,0.0001945,2]
[314840725,1708583442599,-500.0,0.0001945,2]
[314840726,1708583442608,-500.0,0.0001945,2]
[314840727,1708583442617,-500.0,0.0001945,2]
[314840728,1708583442626,-500.0,0.0001945,2]
[314840729,1708583442636,-227.02645395,0.0001945,2]
[314840730,1708583442645,-236.48960869,0.0001945,2]
[314840731,1708583442655,-500.0,0.0001945,2]
[314840732,1708583442664,-500.0,0.0001945,2]
[314840733,1708583442673,-500.0,0.0001945,2]
[314840734,1708583442683,-500.0,0.0001945,2]
[314840735,1708583442692,-500.0,0.0001945,2]
[314840736,1708583442700,-500.0,0.0001945,2]
[314840737,1708583442710,-500.0,0.0001945,2]
[314840738,1708583442719,-500.0,0.0001945,2]
[314840739,1708583442727,-500.0,0.0001945,2]
[314840740,1708583442736,-500.0,0.0001945,2]
[314840741,1708583442745,-500.0,0.0001945,2]
[314840742,1708583442754,-500.0,0.0001945,2]
[314840743,1708583442763,-500.0,0.0001945,2]
[314840744,1708583442773,-500.0,0.0001945,2]
[314840745,1708583442782,-500.0,0.0001945,2]
[314840746,1708583442791,-500.0,0.0001945,2]
[314840747,1708583442800,-500.0,0.0001945,2]
[314840748,1708583442809,-500.0,0.0001945,2]
[314840749,1708583442818,-500.0,0.0001945,2]
[314840750,1708583442827,-500.0,0.0001945,2]
[314840751,1708583442836,-500.0,0.0001945,2]
[314840752,1708583442940,-500.0,0.0001945,2]
[314840753,1708583442950,-500.0,0.0001945,2]
[314840754,1708583442960,-500.0,0.0001945,2]
[314840755,1708583442969,-500.0,0.0001945,2]
[314840756,1708583442979,-500.0,0.0001945,2]
[314840757,1708583442988,-500.0,0.0001945,2]
[314840758,1708583442998,-500.0,0.0001945,2]
[314840759,1708583443007,-500.0,0.0001945,2]
[314840760,1708583443016,-500.0,0.0001945,2]
[314840761,1708583443026,-500.0,0.0001945,2]
[314840762,1708583443035,-500.0,0.0001945,2]
[314840763,1708583443045,-500.0,0.0001945,2]
[314840764,1708583443054,-506.62302411,0.0001945,2]
[314840765,1708583443064,-500.0,0.0001945,2]
[314840766,1708583443073,-500.0,0.0001945,2]
[314840768,1708583443082,-500.0,0.0001945,2]
[314840769,1708583443092,-500.0,0.0001945,2]
[314840770,1708583443101,-500.0,0.00019451,2]
[314840771,1708583443111,-5500.24,0.00019451,2]
[314840772,1708583443120,-2578.39,0.00019451,2]
[314840773,1708583443129,-500.0,0.00019451,2]
[314840774,1708583443138,-980.47,0.00019451,2]
[314840775,1708583443148,-503.33303702,0.00019452,2]
[314840776,1708583443157,-500.0,0.00019452,2]
[314840777,1708583443166,-500.0,0.00019452,2]
[314840778,1708583443177,-500.0,0.00019452,2]
[314840779,1708583443186,-500.0,0.00019452,2]
[314840780,1708583443197,-205.67442968,0.00019452,2]
[314840781,1708583443206,-500.0,0.00019452,2]
[314840782,1708583443215,-500.90652272,0.00019452,2]
[314840783,1708583443224,-500.0,0.00019452,2]
[314840784,1708583443233,-500.0,0.00019452,2]
[314840785,1708583443243,-500.98655187,0.00019452,2]
[314840786,1708583443252,-500.55055743,0.00019452,2]
[314840787,1708583443262,-501.87141753,0.00019452,2]
[314840788,1708583443271,-962.39,0.00019452,2]
[314840789,1708583443280,-500.0,0.00019452,2]
[314840790,1708583443289,-500.0,0.00019452,2]
[314840791,1708583443298,-500.6325217,0.00019452,2]
[314840792,1708583443307,-500.8826109,0.00019452,2]
[314840793,1708583443316,-500.0,0.00019452,2]
[314840794,1708583443326,-500.0,0.00019452,2]
[314840795,1708583443335,-511.88,0.00019452,2]
[314840796,1708583443344,-529.87,0.00019452,2]
[314840797,1708583443354,-500.0,0.00019452,2]
[314840798,1708583443363,-500.0,0.00019452,2]
[314840799,1708583443372,-501.18946826,0.00019452,2]
[314840801,1708583443381,-1855.18,0.00019452,2]
[314840802,1708583443391,-593.41,0.00019452,2]
[314840804,1708583443400,-762.55,0.00019452,2]
[314840805,1708583443409,-500.0,0.00019452,2]
[314840806,1708583443418,-1954.43,0.00019452,2]
[314840807,1708583443427,-500.92520509,0.00019452,2]
[314840808,1708583443436,-500.91888592,0.00019452,2]
[314840809,1708583443445,-500.0,0.00019452,2]
[314840810,1708583443454,-500.0,0.00019452,2]
[314840811,1708583443464,-500.0,0.00019452,2]
[314840812,1708583443474,-501.12869748,0.00019452,2]
[314840813,1708583443483,-502.0598318,0.00019452,2]
[314840814,1708583443493,-500.0,0.00019452,2]
[314840815,1708583443502,-500.0,0.00019452,2]
[314840816,1708583443511,-3714.86,0.00019452,2]
[314840817,1708583443520,-500.0,0.00019452,2]
[314840818,1708583443528,-906.72,0.00019452,2]
[314840819,1708583443537,-501.62181897,0.00019452,2]
[314840820,1708583443546,-1542.65,0.00019452,2]
[314840821,1708583443556,-500.0,0.00019452,2]
[314840822,1708583443565,-500.0,0.00019452,2]
[314840823,1708583443574,-576.95908972,0.00019452,2]
[314840824,1708583443583,-500.0,0.00019452,2]
[314840825,1708583443592,-500.0,0.00019452,2]
[314840826,1708583443601,-500.0,0.00019452,2]
[314840827,1708583443610,-501.06312451,0.00019452,2]
[314840828,1708583443619,-501.4774535,0.00019452,2]
[314840829,1708583443629,-151.0,0.00019452,2]
[314840830,1708583443638,-500.0,0.00019452,2]
[314840831,1708583443647,-500.0,0.00019452,2]
[314840832,1708583443656,-500.0,0.00019452,2]
[314840833,1708583443666,-500.0,0.00019452,2]
[314840834,1708583443675,-565.43581869,0.00019452,2]
[314840835,1708583443684,-500.0,0.00019452,2]
[314840836,1708583443693,-500.91301626,0.00019452,2]
[314840837,1708583443702,-1685.62,0.00019452,2]
[314840838,1708583443712,-551.96562463,0.00019452,2]
[314840839,1708583443721,-500.0,0.00019452,2]
[314840840,1708583443730,-635.75,0.00019452,2]
[314840841,1708583443739,-500.0,0.00019452,2]
[314840842,1708583443749,-500.84342992,0.00019452,2]
[314840843,1708583443758,-500.0,0.00019452,2]
[314840844,1708583443767,-3267.83,0.00019452,2]
[314840845,1708583443776,-500.0,0.00019452,2]
[314840846,1708583443785,-2934.41,0.00019452,2]
[314840847,1708583443794,-500.0,0.00019452,2]
[314840848,1708583443804,-518.21,0.00019452,2]
[314840849,1708583443813,-500.0,0.00019452,2]
[314840850,1708583443822,-1681.02,0.00019452,2]
[314840851,1708583443831,-500.0,0.00019452,2]
[314840852,1708583443839,-500.0,0.00019452,2]
[314840853,1708583443848,-500.0,0.00019452,2]
[314840854,1708583443857,-500.0,0.00019452,2]
[314840855,1708583443866,-500.0,0.00019452,2]
[314840856,1708583443875,-500.0,0.00019452,2]
[314840857,1708583443884,-500.0,0.00019452,2]
[314840858,1708583443894,-500.0,0.00019452,2]
[314840859,1708583443903,-244.70642441,0.00019452,2]
[314840860,1708583443912,-2474.42,0.00019452,2]
[314840861,1708583443921,-500.0,0.00019452,2]
[314840862,1708583443930,-500.0,0.00019452,2]
[314840863,1708583443939,-500.0,0.00019452,2]
[314840864,1708583443950,-501.84072468,0.00019452,2]
[314840865,1708583443960,-500.0,0.00019452,2]
[314840866,1708583443969,-1023.65,0.00019452,2]
[314840867,1708583443980,-500.0,0.00019452,2]
[314840868,1708583443989,-500.0,0.00019452,2]
[314840870,1708583443998,-500.0,0.00019452,2]
[314840871,1708583444008,-500.0,0.00019452,2]
[314840872,1708583444017,-500.0,0.00019452,2]
[314840873,1708583444026,-500.0,0.00019452,2]
[314840874,1708583444036,-501.96455981,0.00019452,2]
[314840875,1708583444045,-500.0,0.00019452,2]
[314840876,1708583444054,-500.0,0.00019452,2]
[314840877,1708583444063,-500.0,0.00019452,2]
[314840878,1708583444072,-723.73,0.00019452,2]
[314840879,1708583444081,-5543.29,0.00019452,2]
[314840880,1708583444091,-500.0,0.00019452,2]
[314840881,1708583444100,-501.23794886,0.00019452,2]
[314840882,1708583444109,-5079.94,0.00019452,2]
[314840883,1708583444118,-694.38,0.00019452,2]
[314840884,1708583444127,-174.55924258,0.00019452,2]
[314840885,1708583444137,-500.0,0.00019452,2]
[314840886,1708583444146,-1686.18,0.00019452,2]
[314840887,1708583444158,-500.0,0.00019452,2]
[314840888,1708583444167,-500.0,0.00019452,2]
[314840889,1708583444177,-500.0,0.00019452,2]
[314840890,1708583444187,-500.0,0.00019452,2]
[314840891,1708583444198,-500.0,0.00019452,2]
[314840892,1708583444207,-500.0,0.00019452,2]
[314840893,1708583444217,-500.0,0.00019452,2]
[314840894,1708583444226,-500.0,0.00019452,2]
[314840895,1708583444236,-500.0,0.00019452,2]
[314840896,1708583444245,-500.0,0.00019452,2]
[314840897,1708583444255,-501.00743122,0.00019452,2]
[314840898,1708583444264,-500.0,0.00019452,2]
[314840899,1708583444275,-2260.78,0.00019452,2]
[314840900,1708583444285,-500.0,0.00019452,2]
[314840901,1708583444295,-500.0,0.00019452,2]
[314840902,1708583444305,-500.0,0.00019452,2]
[314840903,1708583444314,-300.0,0.00019533,2]
[314840904,1708583444324,-2749.9364646,0.00019624,2]
[314840905,1708583444333,-166.666666,0.00019686,2]
[314840906,1708583444342,-500.0,0.00019688,2]
[314840907,1708583444352,-300.0,0.00019711,2]
[314840908,1708583444362,-500.0,0.00019725,2]
[314840909,1708583444371,-5500.24,0.00019725,2]
[314840910,1708583444381,-2578.39,0.00019725,2]
[314840911,1708583444391,-980.47,0.00019725,2]
[314840912,1708583444401,-394.88300049,0.00019726,2]
[314840913,1708583444410,-500.0,0.00019726,2]
[314840914,1708583444420,-500.0,0.00019726,2]
[314840915,1708583444429,-500.0,0.00019726,2]
[314840916,1708583444439,-500.0,0.00019726,2]
[314840917,1708583444448,-500.0,0.00019726,2]
[314840918,1708583444458,-500.0,0.00019726,2]
[314840919,1708583444467,-962.39,0.00019726,2]
[314840920,1708583444477,-500.0,0.00019726,2]
[314840921,1708583444487,-500.0,0.00019726,2]
[314840922,1708583444496,-207.31478126,0.00019726,2]
[314840923,1708583444506,-500.0,0.00019726,2]
[314840924,1708583444514,-511.88,0.00019726,2]
[314840925,1708583444523,-529.87,0.00019726,2]
[314840926,1708583444533,-501.1158348,0.00019726,2]
[314840927,1708583444542,-500.0,0.00019726,2]
[314840928,1708583444552,-1855.18,0.00019726,2]
[314840929,1708583444561,-762.55,0.00019726,2]
[314840930,1708583444570,-501.25023183,0.00019726,2]
[314840931,1708583444579,-1954.43,0.00019726,2]
[314840932,1708583444589,-500.0,0.00019726,2]
[314840933,1708583444598,-500.96078326,0.00019726,2]
[314840934,1708583444607,-500.0,0.00019726,2]
[314840935,1708583444616,-500.0,0.00019726,2]
[314840936,1708583444626,-3714.86,0.00019726,2]
[314840937,1708583444635,-906.72,0.00019726,2]
[314840938,1708583444644,-1542.65,0.00019726,2]
[314840939,1708583444654,-500.0,0.00019726,2]
[314840940,1708583444665,-507.49,0.00019726,2]
[314840941,1708583444676,-500.0,0.00019726,2]
[314840942,1708583444685,-500.0,0.00019726,2]
[314840943,1708583444695,-151.48714558,0.00019726,2]
[314840944,1708583444704,-500.0,0.00019726,2]
[314840945,1708583444713,-500.0,0.00019726,2]
[314840946,1708583444723,-500.0,0.00019726,2]
[314840947,1708583444732,-500.0,0.00019726,2]
[314840948,1708583444742,-500.0,0.00019726,2]
[314840949,1708583444753,-1685.62,0.00019726,2]
[314840950,1708583444764,-501.29036185,0.00019726,2]
[314840951,1708583444773,-635.75,0.00019726,2]
[314840952,1708583444784,-500.0,0.00019726,2]
[314840953,1708583444793,-501.05859456,0.00019726,2]
[314840954,1708583444802,-3267.83,0.00019726,2]
[314840955,1708583444812,-500.0,0.00019726,2]
[314840956,1708583444821,-2934.41,0.00019726,2]
[314840957,1708583444830,-500.0,0.00019726,2]
[314840958,1708583444839,-518.21,0.00019726,2]
[314840959,1708583444849,-501.55001584,0.00019726,2]
[314840960,1708583444858,-1681.02,0.00019726,2]
[314840961,1708583444868,-159.48453292,0.00019726,2]
[314840962,1708583444877,-500.0,0.00019726,2]
[314840963,1708583444886,-500.0,0.00019726,2]
[314840964,1708583444896,-500.0,0.00019726,2]
[314840965,1708583444905,-500.0,0.00019726,2]
[314840966,1708583444915,-2474.42,0.00019726,2]
[314840967,1708583444925,-500.0,0.00019726,2]
[314840968,1708583444936,-500.0,0.00019726,2]
[314840969,1708583444947,-500.0,0.00019726,2]
[314840970,1708583444956,-500.0,0.00019726,2]
[314840971,1708583444965,-1023.65,0.00019726,2]
[314840972,1708583444975,-555.84,0.00019726,2]
[314840973,1708583444986,-500.0,0.00019726,2]
[314840974,1708583444995,-500.0,0.00019726,2]
[314840975,1708583445004,-500.0,0.00019726,2]
[314840976,1708583445014,-500.0,0.00019726,2]
[314840977,1708583445023,-723.73,0.00019726,2]
[314840978,1708583445032,-5543.29,0.00019726,2]
[314840979,1708583445041,-500.0,0.00019726,2]
[314840980,1708583445051,-5079.94,0.00019726,2]
[314840981,1708583445060,-694.38,0.00019726,2]
[314840982,1708583445069,-500.0,0.00019726,2]
[314840983,1708583445078,-1686.18,0.00019726,2]
[314840984,1708583445087,-500.0,0.00019726,2]
[314840985,1708583445096,-500.77206725,0.00019726,2]
[314840986,1708583445105,-500.0,0.00019726,2]
[314840987,1708583445115,-500.0,0.00019726,2]
[314840988,1708583445124,-500.0,0.00019726,2]
[314840989,1708583445134,-500.0,0.00019726,2]
[314840990,1708583445143,-500.0,0.00019726,2]
[314840991,1708583445152,-504.2479257,0.00019726,2]
[314840992,1708583445162,-2260.78,0.00019726,2]
[314840993,1708583445171,-500.0,0.00019726,2]
[314840994,1708583445181,-500.0,0.00019726,2]
[314840995,1708583445192,-500.0,0.00019726,2]
[314840996,1708583445201,-200.10979,0.00019764,2]
[314840997,1708583445211,-200.0,0.00019764,2]
[314840998,1708583445220,-200.0,0.00019764,2]
[314840999,1708583445230,-200.0,0.00019764,2]
[314841000,1708583445239,-200.0,0.00019764,2]
[314841001,1708583445248,-200.0,0.00019764,2]
[314841002,1708583445258,-200.0,0.00019764,2]
[314841003,1708583445268,-200.0,0.00019764,2]
[314841004,1708583445278,-200.0,0.00019764,2]
[314841005,1708583445287,-200.0,0.00019764,2]
[314841006,1708583445297,-2051.08421643,0.00019863,2]
[314841007,1708583445306,-300.0,0.00019889,2]
[314841008,1708583445315,-500.0,0.00019899,2]
[314841009,1708583445324,-500.0,0.00019899,2]
[314841010,1708583445333,-500.0,0.00019899,2]
[314841011,1708583445343,-500.0,0.00019899,2]
[314841012,1708583445352,-500.0,0.00019899,2]
[314841013,1708583445361,-500.0,0.00019899,2]
[314841014,1708583445370,-414.76268041,0.00019899,2]
[314841015,1708583445379,-235772.75543405,0.000199,2]
[314841016,1708583445781,-500.0,0.00019178,2]
[314841017,1708583445791,-501.26154078,0.00019178,2]
[314841018,1708583445801,-542.33161735,0.00019178,2]
[314841019,1708583445811,-500.0,0.00019452,2]
[314841020,1708583445820,-512.58,0.00019726,2]
[314841021,1708583445830,-12110.3392617,0.000199,2]
[314841022,1708583445905,-200.0,0.00018986,2]
[314841023,1708583445915,-500.0,0.00019178,2]
[314841024,1708583445924,-500.0,0.00019452,2]
[314841025,1708583445934,-13492.10119515,0.000199,2]
[314841026,1708583445953,-10022.8480131,0.000199,2]
[314841066,1708584631784,-295.32512171,0.00019069,2]
[314841067,1708584631794,-443.11315693,0.0001907,2]
[314841068,1708584631804,-719.08152352,0.00019073,2]
[314841069,1708584631814,-181.46236333,0.00019078,2]
[314841070,1708584631823,-164.1781551,0.00019178,2]
[314841071,1708584631834,-500.0,0.00019178,2]
[314841072,1708584631844,-500.0,0.00019178,2]
[314841074,1708584631853,-500.0,0.00019178,2]
[314841076,1708584631862,-500.0,0.00019178,2]
[314841078,1708584631872,-500.0,0.00019178,2]
[314841080,1708584631883,-500.0,0.00019178,2]
[314841082,1708584631892,-500.0,0.00019178,2]
[314841083,1708584631904,-500.71233704,0.00019178,2]
[314841084,1708584631913,-537.78828309,0.00019178,2]
[314841085,1708584631922,-500.53364161,0.00019178,2]
[314841087,1708584631931,-500.0,0.00019178,2]
[314841089,1708584631941,-500.0,0.00019178,2]
[314841091,1708584631950,-500.0,0.00019178,2]
[314841093,1708584631959,-191.60541767,0.00019178,2]
[314841251,1708584637764,-308.39458233,0.00019178,2]
[314841253,1708584637774,-500.0,0.00019178,2]
[314841255,1708584637784,-500.0,0.00019178,2]
[314841257,1708584637793,-318.57390755,0.00019178,2]
[314841259,1708584637802,-421.46497346,0.00019178,2]
[314841261,1708584637812,-202.17054645,0.00019178,2]
[314841264,1708584637828,-297.82945355,0.00019178,2]
[314841266,1708584637837,-500.0,0.00019178,2]
[314841268,1708584637847,-793.38,0.00019178,2]
[314841270,1708584637856,-174.9949221,0.00019178,2]
[314841272,1708584637865,-151.48714558,0.00019178,2]
[314841274,1708584637875,-500.0,0.00019178,2]
[314841276,1708584637884,-500.0,0.00019178,2]
[314841278,1708584637893,-500.0,0.00019178,2]
[314841280,1708584637902,-500.0,0.00019178,2]
[314841282,1708584637911,-500.0,0.00019178,2]
[314841284,1708584637920,-500.0,0.00019178,2]
[314841286,1708584637930,-500.91301626,0.00019178,2]
[314841288,1708584637940,-500.0,0.00019178,2]
[314841290,1708584637949,-565.43581869,0.00019178,2]
[314841292,1708584637958,-853.72,0.00019178,2]
[314841294,1708584637967,-500.0,0.00019178,2]
[314841295,1708584637976,-500.0,0.00019178,2]
[314841297,1708584637986,-500.0,0.00019178,2]
[314841300,1708584637995,-500.0,0.00019178,2]
[314841301,1708584638005,-500.0,0.00019178,2]
[314841303,1708584638014,-530.83,0.00019178,2]
[314841305,1708584638023,-500.0,0.00019178,2]
[314841307,1708584638032,-500.51248148,0.00019178,2]
[314841309,1708584638041,-500.0,0.00019178,2]
[314841311,1708584638050,-963.22,0.00019178,2]
[314841313,1708584638058,-500.0,0.00019178,2]
[314841315,1708584638067,-583.59936551,0.00019178,2]
[314841317,1708584638077,-500.0,0.00019178,2]
[314841319,1708584638086,-500.0,0.00019178,2]
[314841321,1708584638094,-1858.54,0.00019178,2]
[314841323,1708584638103,-501.18946826,0.00019178,2]
[314841325,1708584638112,-500.0,0.00019178,2]
[314841327,1708584638122,-500.0,0.00019178,2]
[314841329,1708584638130,-500.0,0.00019178,2]
[314841331,1708584638139,-730.78,0.00019178,2]
[314841333,1708584638148,-500.0,0.00019178,2]
[314841335,1708584638157,-500.0,0.00019178,2]
[314841337,1708584638165,-500.0,0.00019178,2]
[314841339,1708584638174,-3560.07,0.00019178,2]
[314841341,1708584638183,-500.0,0.00019178,2]
[314841343,1708584638192,-1198.52072698,0.00019178,2]
[314841597,1708584640977,-674.47927302,0.00019178,2]
[314841599,1708584640987,-500.0,0.00019178,2]
[314841601,1708584640996,-500.68079362,0.00019178,2]
[314841603,1708584641005,-500.0,0.00019178,2]
[314841605,1708584641015,-136.44876851,0.00019178,2]
[314841607,1708584641027,-363.55123149,0.00019178,2]
[314841609,1708584641037,-500.0,0.00019178,2]
[314841611,1708584641045,-500.0,0.00019178,2]
[314841613,1708584641054,-500.0,0.00019178,2]
[314841615,1708584641063,-576.95908972,0.00019178,2]
[314841617,1708584641073,-501.96455981,0.00019178,2]
[314841619,1708584641082,-273.12670179,0.00019178,2]
[314841621,1708584641094,-226.87329821,0.00019178,2]
[314841623,1708584641103,-244.70642441,0.00019178,2]
[314841625,1708584641113,-1478.37,0.00019178,2]
[314841627,1708584641121,-115.53535794,0.00019178,2]
[314841629,1708584641133,-384.46464206,0.00019178,2]
[314841631,1708584641141,-77.03172497,0.00019178,2]
[314841858,1708584643337,-422.96827503,0.00019178,2]
[314841860,1708584643346,-500.0,0.00019178,2]
[314841863,1708584643356,-500.0,0.00019178,2]
[314841865,1708584643365,-500.0,0.00019178,2]
[314841866,1708584643374,-500.0,0.00019178,2]
[314841868,1708584643382,-500.0,0.00019178,2]
[314841870,1708584643391,-665.45,0.00019178,2]
[314841873,1708584643401,-501.00743122,0.00019178,2]
[314841874,1708584643410,-500.38633473,0.00019178,2]
[314841877,1708584643419,-383.82927908,0.00019178,2]
[314841878,1708584643429,-500.91888592,0.00019178,2]
[314841881,1708584643438,-500.0,0.00019178,2]
[314841883,1708584643447,-500.0,0.00019178,2]
[314841886,1708584643456,-501.12869748,0.00019178,2]
[314841888,1708584643465,-381.81109654,0.00019178,2]
[314844764,1708584905618,267.07551727,0.0003,120]
[314844769,1708585076939,5000.0,0.00021088,14]
[314844770,1708585153804,1966.0,0.0003,120]
[314844890,1708585838032,-155.10702385,0.00018797,2]
[314844892,1708585838046,-1117.6998079,0.00018798,2]
[314844893,1708585838059,-2278.98246269,0.00018798,2]
[314844894,1708585838073,-1128606.30249818,0.000188,2]
[314844895,1708585838086,-289.88358592,0.00018898,2]
[314844896,1708585838100,-295.32512171,0.00018899,2]
[314844897,1708585838115,-891857.45396576,0.00018899,2]
[314844899,1708585838131,-13389.54605906,0.00018899,2]
[314844904,1708585841079,-2001.46095292,0.00018899,2]
[314844936,1708585843001,-2154.05864851,0.00018899,2]
[314844937,1708585843015,-478.27575993,0.00018899,2]
[314844950,1708585846068,-20479.05662847,0.00018899,2]
[314845014,1708587032254,-295.32512171,0.00018798,2]
[314845015,1708587032264,-3246.96797234,0.00018799,2]
[314845017,1708587032274,-181.46236333,0.000188,2]
[314845018,1708587032285,-5321.4143721,0.0001888,2]
[314845021,1708587032295,-279.00075863,0.00018898,2]
[314845024,1708587032305,-8273.82941189,0.00018899,2]
[314845123,1708587038135,-12264.16283335,0.00018899,2]
[314845134,1708587041263,-1994.29896165,0.00018899,2]
[314845154,1708587043191,-288.57936878,0.00018899,2]
[314845155,1708587043204,-16942.70220081,0.00018899,2]
[314845156,1708587043215,-1206.73728411,0.00018899,2]